Cogmind - Beta 13 @@@ ROGUE MODE // 2024.03.05 @ 22:03:25 Player: OctarineSorcerer Result: Destroyed by C-17 Slicer with Blade Saw Performance ------------- Evolutions (3) 1500 Regions Visited (4) 800 Robots Destroyed (79) 395 Value Destroyed (2245) 2245 Prototype IDs (4) 80 Alien Tech Used (0) 0 Bonus (19) 19 TOTAL SCORE: 5039 Bonus ------- High Alert Combat Kills 19 Cogmind --------- Core Integrity 0/700 Matter 280/300 Energy 80/100 System Corruption 1% Temperature Cool (0) Movement Rolling (115) Ox1 Location -7/Factory Parts ------- > --- POWER (1) -------- (None) > --- PROPULSION (4) --- Compact Wheel Improved Hover Unit Improved Hover Unit > --- UTILITY (5) ------ Large Storage Unit Sensor Array Melee Analysis Suite Core Analyzer System Shield > --- WEAPON (3) ------- Impact Mace Katana > --- INVENTORY (15) --- Improved Deuterium Engine Faulty Heavy Deuterium Engine Micro Nuclear Core Advanced Weight Redist. System Advanced Visual Processing Unit Improved Terrain Scan Processor Kinecellerator Transmission Jammer Reaction Control System Improved Light Armor Plating Hacking Suite Recalibrator Peak State ------------ > --- POWER ------------ Improved Deuterium Engine > --- PROPULSION ------- Improved Hover Unit Improved Hover Unit Improved Hover Unit Gravmag System > --- UTILITY ---------- Large Storage Unit Sensor Array Melee Analysis Suite Core Analyzer System Shield > --- WEAPON ----------- Impact Mace Impact Mace Impact Mace > --- INVENTORY -------- Heavy Deuterium Engine Micro Nuclear Core Micro Nuclear Core Compact Wheel Advanced Weight Redist. System Advanced Visual Processing Unit Improved Terrain Scan Processor Kinecellerator Reaction Control System Improved Light Armor Plating Hacking Suite Recalibrator Advanced Assault Cannon Katana Katana [Rating: 46] Favorites ----------- Power Light Nuclear Core Engine Deuterium Engine Power Core Light Nuclear Core Propulsion Aluminum Leg Leg Aluminum Leg Wheel Compact Wheel Hover Unit Improved Hover Unit Flight Unit Cesium-ion Thruster Utility Large Storage Unit Device Sensor Array Storage Large Storage Unit Processor Core Analyzer Hackware System Shield Protection Light Armor Plating Weapon Impact Mace Energy Gun Small Laser Ballistic Cannon Light Cannon Launcher Grenade Launcher Impact Weapon Impact Mace Slashing Weapon Katana Build | -11 -10 -9 -8 -7 ------- Run | Yrd Mat Mat Mat Fac Slots Evolved 6 | . . 2 2 2 Power . | . . . . . Propulsion 2 | . . 1 1 . Utility 3 | . . 1 1 1 Weapon 1 | . . . . 1 Parts Attached 58 | 7 5 11 14 21 Power 8 | 1 1 1 2 3 Engine 5 | 1 . 1 2 1 Core 3 | . 1 . . 2 Reactor . | . . . . . Propulsion 20 | 2 . 2 6 10 Treads . | . . . . . Leg 12 | 2 . 2 6 2 Wheel 3 | . . . . 3 Hover 4 | . . . . 4 Flight 1 | . . . . 1 Utility 13 | 2 2 2 4 3 Device 4 | 1 . 1 1 1 Storage 3 | 1 2 . . . Processor 2 | . . . 1 1 Hackware 1 | . . . . 1 Protection 3 | . . 1 2 . Artifact . | . . . . . Weapon 17 | 2 2 6 2 5 Energy Gun 2 | 2 . . . . Energy Cannon . | . . . . . Ballistic Gun . | . . . . . Ballistic Cannon 6 | . 2 4 . . Launcher 2 | . . 2 . . Special Weapon . | . . . . . Impact Weapon 5 | . . . 2 3 Slashing Weapon 2 | . . . . 2 Piercing Weapon . | . . . . . Special Melee Weapon . | . . . . . Unidentified Prototypes . | . . . . . Corrupted Parts 1 | . . . 1 . System Corruption 5 | . . . 5 . Parts Lost 16 | . . 2 1 13 Power 5 | . . 1 1 3 Propulsion 7 | . . . . 7 Utility 3 | . . 1 . 2 Weapon 1 | . . . . 1 Highest Loss Streak 3 | . . 1 1 3 To Critical Strikes . | . . . . . Average Slot Usage (%) 94 | . 100 99 99 89 Engine 5 | . 2 6 9 5 Core 2 | . 11 4 . 1 Leg 25 | . 28 33 36 15 Hover 1 | . . . . 2 Device 8 | . 14 10 9 6 Storage 8 | . 14 11 9 7 Processor 9 | . . . 8 15 Hackware 2 | . . . . 5 Protection 4 | . . 11 8 1 Energy Gun 2 | . 22 . . . Ballistic Cannon 4 | . 6 21 2 . Impact Weapon 14 | . . . 15 22 Naked Turns . | . . . . . Heaviest Build 40 | 13 32 37 40 40 Greatest Support 63 | 20 20 30 55 63 Greatest Overweight (x) 3 | 3 1 1 . 2 Average Overweight (x) . | . . 1 . . Largest Inventory Capacity 15 | 8 15 15 15 15 Average Capacity 14 | 7 9 15 15 15 Most Carried 15 | 3 11 12 15 15 Average Carried 12 | 2 7 9 14 14 Final Capacity 15 | 8 15 15 15 15 Final Carried 13 | 3 11 12 13 12 Class Distribution -------------------- 56% | Mutant 43% | Gladiator Dominant Class ---------------- Mutant | -10/Materials Mutant | -9/Materials Mutant | -8/Materials Gladiator | -7/Factory Resources | -11 -10 -9 -8 -7 ----------- Run | Yrd Mat Mat Mat Fac Matter Collected 1013 | 173 163 341 177 159 Remotely . | . . . . . Salvage Created 2798 | 62 337 340 837 1222 Parts 114 | 8 20 34 25 27 Haulers Intercepted 5 | . 1 1 2 1 Recyclers Shooed . | . . . . . Parts Field Recycled . | . . . . . Retrieved Matter . | . . . . . Parts Self-Destructed . | . . . . . Prevented . | . . . . . Kills | -11 -10 -9 -8 -7 ------- Run | Yrd Mat Mat Mat Fac Combat Hostiles Destroyed 49 | . 4 12 14 19 Melee 13 | . . . 6 7 Guns 4 | . 4 . . . Cannons 8 | . . 8 . . AOE 4 | . . 4 . . Classes Destroyed 13 | 1 5 3 2 2 Worker 8 | . . 1 3 4 Builder 3 | . . 2 . 1 Tunneler 3 | 3 . . . . Hauler 5 | . 1 1 2 1 Recycler 4 | . 2 . . 2 Watcher 7 | . 1 1 2 3 Swarmer 9 | . 2 6 1 . Cutter 1 | . . . . 1 Grunt 23 | . 2 2 10 9 Duelist 1 | . . . 1 . Sentry 12 | . . 4 1 7 Hunter 1 | . . . 1 . Programmer 2 | . . . . 2 Best Kill Streak 10 | 2 2 5 4 10 Combat Bots Only 4 | . 2 4 4 4 Max Kills in Single Turn 2 | 1 1 2 1 1 Gunslinging . | . . . . . Exploded 2 | . . 2 . . Melee 1 | . . . 1 1 Uniques/NPCs Destroyed . | . . . . . Combat | -11 -10 -9 -8 -7 -------- Run | Yrd Mat Mat Mat Fac Hostile Shots Fired 477 | . 19 70 75 313 Missed 177 | . 6 23 30 118 Damage Taken 3547 | . 131 673 514 2229 Core 885 | . 35 103 33 714 Absorbed by Shields . | . . . . . Regen/Repaired (Parts) 51 | . . . 51 . Core Remaining (%) 88 | 100 86 74 94 . Volleys Fired 67 | 10 22 35 . . Largest 2 | 2 2 2 . . Hottest 80 | 80 80 74 . . Shots Fired 129 | 20 44 65 . . Gun 59 | 20 39 . . . Cannon 62 | . 5 57 . . Launcher 8 | . . 8 . . Special . | . . . . . Kinetic 62 | . 5 57 . . Thermal 59 | 20 39 . . . Explosive 8 | . . 8 . . Electromagnetic . | . . . . . Robot Hit Streak 9 | 3 7 9 . . Robot Miss Streak 4 | 2 4 3 . . Penetration Max . | . . . . . Secondary Targets . | . . . . . Shots Hit Robots 184 | 11 27 37 32 77 Core Hits 59 | 3 14 20 9 13 Critical Kills 6 | . . . 2 4 Critical Parts Destroyed 20 | . . . 6 14 Critical Strikes 29 | . . 2 8 19 Blast 2 | . . 2 . . Smash 27 | . . . 8 19 Melee Attacks 126 | . . . 38 88 Impact 124 | . . . 38 86 Slashing 2 | . . . . 2 Piercing . | . . . . . Sneak Attacks 13 | . . . 6 7 Combat Hostiles . | . . . . . Follow-up Attacks 26 | . . . 4 22 Damage Inflicted 7509 | 121 314 1163 2156 3755 Guns 398 | 121 277 . . . Cannons 717 | . 34 683 . . Explosions 480 | . . 480 . . Melee 5859 | . . . 2104 3755 Ramming 55 | . 3 . 52 . Kinetic 717 | . 34 683 . . Thermal 517 | 121 277 119 . . Explosive 361 | . . 361 . . Electromagnetic . | . . . . . Impact 5823 | . . . 2104 3719 Slashing 36 | . . . . 36 Piercing . | . . . . . Highest Corruption 5 | . . 1 5 1 Average Corruption 2 | . . 1 5 1 Corruption Purged . | . . . . . Corruption Blocked 1 | . . . . 1 Effects 12 | . . . 7 5 Message Errors 3 | . . . 3 . Matter Fused 2 | . . . . 2 Heat Flow Errors 2 | . . . 1 1 Energy Discharges 1 | . . . 1 . Parts Rejected 1 | . . . . 1 Data Loss (minor) 2 | . . . 1 1 Alerts 1 | . . . 1 . Overload Shots . | . . . . . Overflow Damage 1938 | . . 47 761 1130 Projectiles 1 | . . 1 . . Explosions 46 | . . 46 . . Melee 1891 | . . . 761 1130 Knockbacks 22 | . . 2 8 12 Impact 18 | . . . 7 11 Kinetic 2 | . . 2 . . Secondary 2 | . . . 1 1 Self-Inflicted Damage 95 | . . 95 . . Shots 3 | . . 3 . . Rammed . | . . . . . Targets Rammed 11 | . 1 . 10 . Kicked 11 | . 1 . 10 . Crushed . | . . . . . Highest Temperature 258 | 72 108 181 258 87 Average Temperature 48 | 31 36 52 138 46 Received Heat Transfer 876 | . 30 156 189 501 Siege Activations . | . . . . . Robots Corrupted . | . . . . . Combat Hostiles . | . . . . . Parts Fried 36 | . . . 13 23 Impact Corruptions 62 | . . . 24 38 Robots Melted . | . . . . . Combat Hostiles . | . . . . . Parts Melted . | . . . . . Heat Transferred 1000 | 275 625 100 . . Parts Sabotaged . | . . . . . Parts Stolen . | . . . . . Parts Stripped . | . . . . . Power Chain Reactions . | . . . . . Alert | -11 -10 -9 -8 -7 ------- Run | Yrd Mat Mat Mat Fac Peak Influence 457 | 15 197 457 429 318 Initial 137 | . 9 83 133 137 Average 192 | 4 141 272 279 146 Maximum Alert Level 2 | . . 2 2 1 Low Security (%) 57 | 100 100 35 13 74 Level 1 37 | . . 40 82 25 Level 2 4 | . . 23 3 . Level 3 . | . . . . . Level 4 . | . . . . . Level 5 . | . . . . . High Security . | . . . . . Max Security . | . . . . . Squads Dispatched 15 | . . 1 7 7 Investigation 7 | . . . 3 4 Extermination 2 | . . . . 2 Reinforcement 3 | . . 1 1 1 Assault . | . . . . . Garrison 3 | . . . 3 . Intercept . | . . . . . Searches Triggered . | . . . . . Construction Impeded 1 | . . 1 . . Haulers Reinforced . | . . . . . Active Scanning Responses . | . . . . . Cargo Convoy Interrupts 1 | . . . . 1 Stealth | -11 -10 -9 -8 -7 --------- Run | Yrd Mat Mat Mat Fac Distress Signals 3 | . 1 1 1 . Communications Jammed . | . . . . . Distress Signals . | . . . . . Times Spotted 82 | . 12 20 22 28 Peak Tracking Total 6 | . 4 5 4 6 Tactical Retreats 2 | . 2 . . . Traps | -11 -10 -9 -8 -7 ------- Run | Yrd Mat Mat Mat Fac Traps Triggered 7 | . . 1 1 5 Indirectly . | . . . . . Trap Hack Attempts . | . . . . . Triggered . | . . . . . Disarmed . | . . . . . Reprogrammed . | . . . . . Reused . | . . . . . Traps Extracted . | . . . . . Installed . | . . . . . Triggered 2 | . . . . 2 Machines | -11 -10 -9 -8 -7 ---------- Run | Yrd Mat Mat Mat Fac Machines Disabled 3 | . . 2 . 1 Max in Single Turn 2 | . . 2 . 1 Machines Repaired . | . . . . . Machines Dismantled . | . . . . . Machines Sabotaged . | . . . . . Overloaded Fab Kills . | . . . . . Hacking | -11 -10 -9 -8 -7 --------- Run | Yrd Mat Mat Mat Fac Machines Accessed 18 | . 3 1 6 8 Terminals 10 | . 2 1 3 4 Fabricators 2 | . . . . 2 Repair Stations 2 | . . . 2 . Recycling Units 2 | . 1 . . 1 Scanalyzers 1 | . . . 1 . Garrison Access 1 | . . . . 1 Total Hacks 59 | . 6 5 24 24 Successful 30 | . 5 2 15 8 Failed 28 | . 1 3 9 15 Catastrophic 6 | . 1 . . 5 Database Lockouts 1 | . . . . 1 Manual 8 | . . . . 8 Terminals 38 | . 5 5 11 17 Fabricators 4 | . . . . 4 Repair Stations 6 | . . . 6 . Recycling Units 3 | . 1 . . 2 Scanalyzers 7 | . . . 7 . Garrison Access 1 | . . . . 1 Terminal Hacks 18 | . 4 2 7 5 Record 4 | . . . . 4 Robot Analysis 1 | . 1 . . . Prototype ID Bank 2 | . 1 . 1 . Branch Access Points 1 | . . . 1 . Emergency Access Points 2 | . 1 . . 1 Alert Level 1 | . . . 1 . Unreport Threat 1 | . . . 1 . Dispatch Records 2 | . 1 1 . . Security Status 1 | . . . 1 . Hauler Manifests 1 | . . . 1 . Registered Components 1 | . . 1 . . Zone Layout 1 | . . . 1 . Fabricator Hacks 1 | . . . . 1 Network Status 1 | . . . . 1 Repair Station Hacks 3 | . . . 3 . Scan Component 2 | . . . 2 . Repair 1 | . . . 1 . Recycling Unit Hacks 2 | . 1 . . 1 Report Inventory 2 | . 1 . . 1 Scanalyzer 5 | . . . 5 . Insert Component 2 | . . . 2 . Analyze 3 | . . . 3 . Garrison Access Hacks . | . . . . . Unauthorized Hacks 1 | . . . . 1 Terminals . | . . . . . Fabricators . | . . . . . Repair Stations . | . . . . . Recycling Units 1 | . . . . 1 Reject 1 | . . . . 1 Scanalyzers . | . . . . . Garrison Access . | . . . . . Data Cores Recovered . | . . . . . Used . | . . . . . Hacking Detections 16 | . 2 1 6 7 Full Trace Events 3 | . . . 2 1 Feedback Events . | . . . . . Feedback Blocked . | . . . . . Robot Schematics Acquired . | . . . . . Robots Built . | . . . . . Authchips . | . . . . . Time . | . . . . . Total Robot Build Rating . | . . . . . Part Schematics Acquired 2 | . . . 2 . Parts Built . | . . . . . Authchips . | . . . . . Time . | . . . . . Total Part Build Rating . | . . . . . Parts Repaired 1 | . . . 1 . Time 26 | . . . 26 . Parts Recycled . | . . . . . Recycled Matter . | . . . . . Retrieved Matter . | . . . . . Retrieved Components . | . . . . . Parts Scanalyzed 2 | . . . 2 . Part Schematics Acquired 2 | . . . 2 . Parts Damaged . | . . . . . Bothacking | -11 -10 -9 -8 -7 ------------ Run | Yrd Mat Mat Mat Fac Used RIF Installer . | . . . . . Robots Hacked . | . . . . . Non-combat . | . . . . . Combat . | . . . . . Robot Hacks Applied . | . . . . . Relay Couplers Released . | . . . . . Fabnet Peak Effective % . | . . . . . Robots Rewired . | . . . . . Allies Hacked . | . . . . . Hacks Repelled . | . . . . . Allies | -11 -10 -9 -8 -7 -------- Run | Yrd Mat Mat Mat Fac Total Allies . | . . . . . Largest Group . | . . . . . Highest-Rated Group . | . . . . . Highest-Rated Ally . | . . . . . Total Orders . | . . . . . Ally Attacks . | . . . . . Total Damage . | . . . . . Kills . | . . . . . Allies Corrupted . | . . . . . Allies Melted . | . . . . . Intel | -11 -10 -9 -8 -7 ------- Run | Yrd Mat Mat Mat Fac Robot Analysis Total 1 | . 1 . . . Derelict Logs Recovered . | . . . . . Drone Launches . | . . . . . Drone Recoveries . | . . . . . Exploration | -11 -10 -9 -8 -7 ------------- Run | Yrd Mat Mat Mat Fac Turns Passed 3210 | 140 357 513 780 1420 Spaces Moved 1619 | 75 196 198 402 748 Core 9 | 9 . . . . Treads . | . . . . . Legs 1413 | 66 196 198 402 551 Wheels 122 | . . . . 122 Hover 75 | . . . . 75 Flight . | . . . . . Fastest Speed 50 | 50 120 190 120 108 Average Speed 138 | 129 134 190 120 136 Slowest Speed 260 | 200 190 190 122 260 Overloaded Moves . | . . . . . Propulsion Burnouts . | . . . . . Robots Hopped . | . . . . . Cave-ins Triggered . | . . . . . Exploration Rate (%) 28 | 4 42 28 44 24 Regions Visited 4 Branch Regions . Pre-discovered Areas . | . . . . . Known Exits Taken . | . . . . . Unknown Exits Taken 4 | 1 1 1 1 . Scrap Searched . | . . . . . Spaces Dug 4 | . . 4 . . Terrain Destroyed 69 | . . 69 . . Melee . | . . . . . Projectile . | . . . . . AOE 69 | . . 69 . . Terrain Rammed . | . . . . . Walls Destroyed . | . . . . . Machines Disabled . | . . . . . Actions | -11 -10 -9 -8 -7 --------- Run | Yrd Mat Mat Mat Fac Total 2278 | 94 245 270 642 1027 Wait 349 | . 11 16 158 164 Move 1615 | 74 195 197 401 748 Hop . | . . . . . Pick Up 44 | 3 8 7 11 15 Fast Attach 16 | 7 . . 2 7 Attach 21 | . . 6 3 12 Detach 4 | . . 1 1 2 Swap 21 | . 5 5 9 2 Drop 28 | . 3 3 15 7 Fire 67 | 10 22 35 . . Melee 97 | . . . 32 65 Ram . | . . . . . Kick 11 | . 1 . 10 . Crush . | . . . . . Escape Stasis 5 | . . . . 5 Rewire . | . . . . . Trap . | . . . . . Miscellaneous . | . . . . . Route ------- -11/Scrapyard -10/Materials (discovered 3 exits: *Mat x2 / [*Min]) -9/Materials -8/Materials -7/Factory (discovered 1 exit: [*Low]) History --------- Turn | Location | Event 26 | -11/Scrapyard | Discovered new exit (range 16) 141 | -11/Scrapyard | Entered Materials 286 | -10/Materials | Discovered new exit (range 10) 309 | -10/Materials | Discovered new exit (range 4) 323 | -10/Materials | Build established: Mutant 377 | -10/Materials | Discovered new exit (range 15) 498 | -10/Materials | Entered another Materials area 498 | -9/Materials | Evolved 2 slots: Propulsion x1, Utility x1 825 | -9/Materials | Discovered new exit (range 16) 1011 | -9/Materials | Entered another Materials area 1011 | -8/Materials | Evolved 2 slots: Propulsion x1, Utility x1 1519 | -8/Materials | Garrison activated, responded to threat 1583 | -8/Materials | Repaired Lgt. Armor Plating 1722 | -8/Materials | Discovered new exit (range 13) 1791 | -8/Materials | Entered Factory 1791 | -7/Factory | Evolved 2 slots: Utility x1, Weapon x1 2070 | -7/Factory | Central database locked down 2087 | -7/Factory | Build established: Gladiator 2199 | -7/Factory | Lost 3 parts (2n1u) 2546 | -7/Factory | Cargo convoy interrupted 3064 | -7/Factory | Core integrity fell below 50% 3183 | -7/Factory | Discovered new exit (range 10) 3202 | -7/Factory | Core integrity fell below 20% 3211 | -7/Factory | Destroyed by C-17 Slicer with Blade Saw Last Messages --------------- 03191_ C-17 Slicer knocked back. 03192_ Imp. Hover Unit severed. 03192_ K-01 Serf collects debris. 03192_ K-01 Serf destroyed. 03193_ Impact Mace severed. 03197_ K-01 Serf collects debris. 03199_ Acquired Impact Mace. 03199_ Impact Mace destroyed. 03199_ Knocked back. 03200_ Katana severed. 03201_ Knocked back. 03201_ K-01 Serf collects debris. 03203_ Acquired 52 matter. 03203_ Slug penetrates Wall. 03205_ Mic. Nuclear Core destroyed. 03206_ Acquired 5 matter. 03209_ System corrupted: Matter fused (-10). 03209_ Destroyed Concussive RPG. 03209_ Impact Mace follow-up attack on C-17 Slicer. Map ----- +----------------------------------------------------+ | ???# ########+###### | | ???# ! | | ???# | | ???# """ ##### | | ???# """"" ###???##### | | ???# ] ! %"""" # ?????# ## | | ???# ! + * # | | ???# """ # | | ???# """"" #??"T" = | | ???# """"" #??""" | | ???# # #] | | ???# # """ """ ####### ## | | ???#?# """"" """"" #?????##### | | ???#?# """"" """"" ?????? | | ???# # ? ???? | | ???#?# ? ??? | | ???# ### ###?###??######??######## | | ???# #?# #???????????????????????? | | ???# ### ###?????#####???????????? | | ???# # ##### #???????????? | | ???# # ##??????????? | | ???# # =*%= < ??????? | | ???# # / /% %H ? #???????????? | | ???# #%%g """## #???????????? | | ??##+###c###;##???/###???????????? | | ?# =@ #??????????????????? | | ?#! ! #??????????????????? | | ?# ] #??????????????????? | | ?# #??????????????????? | | ?# #??????????????????? | | ?##############??????????????????? | | ?????????????????????????????????? | | ??????????????????????????????#T # | | ????????????????????????????? | | ????????????????????????????? | | ????????????????????????????? | | ????????????????????????????? | | ????????????????????????????? | | ?????????????????????????????? | | ?????????????????????????????? | | ??????????????????????????????? ## | | ?????????????????????????????????? | | ?????????????????????????????????? | | ?????????????????????????????????? | | ?????????????????????????????????? | | ?????????????????????????????????? | | ?????????????????????????????????? | | ?????????????????????????????????? | | ?????????????????????????????????? | | ?????????????????????????????????? | +----------------------------------------------------+ Best States ------------- Heat Dissipation 34 Energy Generation 16 Energy Capacity 290 Matter Stores 300 Matter Capacity 300 Sight Range 16 Robot Scan Range 15 Terrain Scan Range 16 Terrain Scan Density 10 Armor Coverage 300 Evasion (%) 55 Melee Accuracy 5 Core Analysis 6 Defensive Hacking 10 Item Schematics ----------------- Impact Mace | -8/Materials | Scanalyzed Lgt. Armor Plating | -8/Materials | Scanalyzed Robot Schematics ------------------ None Fabricated ------------ Nothing Alien Tech Used ----------------- None Achievements -------------- Party Time True Hacker Challenges ------------ None Game ------ Seed FrostNullScrap Manual? 0 Play Time 01:05:04 Cumulative 27.2 hours Start 2024.03.05 @ 19:42:52 End 2024.03.05 @ 22:03:25 Sessions 1 Manual Loads 0 Difficulty Rogue Special Mode None Game No. 37 Rogue 37 Adventurer 0 Explorer 0 Win Type - Total 0 Types 0/0/0/0/0/0/0/0/0 Lore% 12 Gallery% 22 Achievement% 17 Wizard Run 0 Options --------- Layout 1 ASCII 0 Keyboard 1 Movement Vi Keybinds 0 Fullscreen 2 Font 24/Smallcaps Map View 50x35 Zoom Use 0% Tactical HUD 1 Map Filters NONE Filters NONE Steam 1 RUN: 594a0133-f638-4db5-803c-2afdb1ca72d8